fUSD/lending_fUSD_20250421
["ID","MTS","AMOUNT","RATE_DAILY","PERIOD"]
[358501689,1745214666019,-200.0,0.000674,120]
[358501690,1745214666029,-200.0,0.000674,120]
[358501691,1745214666039,-150.0,0.00067446,120]
[358501692,1745214666048,-150.0,0.00067463,120]
[358501693,1745214666058,-150.0,0.00067468,120]
[358501694,1745214666067,-243.3956206,0.00067472,120]
[358501695,1745214666076,-1265.00426456,0.00067497,15]
[358501696,1745214666085,-2414.4,0.000675,60]
[358501697,1745214666094,-150.0,0.000675,120]
[358501698,1745214666103,-150.0,0.0006753,120]
[358501699,1745214666112,-243.3956206,0.00067547,120]
[358501700,1745214666121,-157.267263,0.0006755,120]
[358501701,1745214666130,-153.229548,0.0006755,120]
[358501702,1745214666139,-150.0,0.00067562,120]
[358501703,1745214666148,-243.3956206,0.00067622,120]
[358501704,1745214666157,-1455.0,0.0006763,60]
[358501705,1745214666166,-150.0,0.00067654,120]
[358501706,1745214666175,-150.0,0.00067661,120]
[358501707,1745214666184,-150.0,0.00067664,120]
[358501708,1745214666193,-243.3956206,0.00067697,120]
[358501709,1745214666202,-190.295503,0.000677,120]
[358501710,1745214666211,-175.575359,0.000677,120]
[358501711,1745214666220,-152.86,0.0006771,120]
[358501712,1745214666230,-172.0,0.00067736,120]
[358501713,1745214666239,-150.0,0.00067759,120]
[358501714,1745214666248,-150.0,0.00067769,120]
[358501715,1745214666258,-243.3956206,0.00067771,120]
[358501716,1745214666267,-285.50846208,0.00067798,120]
[358501717,1745214666276,-172.98434417,0.000678,120]
[358501718,1745214666285,-150.0,0.00067809,120]
[358501719,1745214666294,-150.0,0.00067809,120]
[358501720,1745214666304,-193.78831667,0.00067845,14]
[358501721,1745214666313,-208.6241584,0.00067845,2]
[358501722,1745214666323,-23637.24858106,0.00067845,2]
[358501723,1745214666332,-2768.84712733,0.00067845,2]
[358501724,1745214666342,-243.3956206,0.00067846,120]
[358501725,1745214666351,-150.0,0.00067858,120]
[358501726,1745214666361,-157.267263,0.00067875,120]
[358501727,1745214666370,-154.289613,0.00067875,120]
[358501728,1745214666380,-153.229548,0.00067875,120]
[358501729,1745214666389,-176.087991,0.00067875,120]
[358501730,1745214666399,-150.0,0.00067881,120]
[358501731,1745214666408,-243.3956206,0.00067921,120]
[358501732,1745214666418,-150.0,0.00067944,120]
[358501733,1745214666427,-500.0,0.00067945,120]
[358501734,1745214666436,-500.0,0.00067945,120]
[358501735,1745214666446,-1679.61,0.00067945,7]
[358501736,1745214666455,-599.27,0.00067945,120]
[358501737,1745214666465,-500.0,0.00067945,120]
[358501738,1745214666474,-947.83,0.00067945,120]
[358501739,1745214666485,-500.0,0.00067945,120]
[358501740,1745214666495,-648.72,0.00067945,120]
[358501741,1745214666505,-500.0,0.00067945,120]
[358501742,1745214666514,-500.0,0.00067945,14]
[358501743,1745214666525,-1007.83,0.00067945,120]
[358501744,1745214666535,-500.0,0.00067945,120]
[358501745,1745214666544,-527.13,0.00067945,120]
[358501746,1745214666553,-1890.04,0.00067945,120]
[358501747,1745214666563,-676.5,0.00067945,120]
[358501748,1745214666573,-841.95,0.00067945,120]
[358501749,1745214666583,-500.0,0.00067945,120]
[358501750,1745214666593,-793.51,0.00067945,120]
[358501751,1745214666603,-500.0,0.00067945,120]
[358501752,1745214666612,-500.0,0.00067945,120]
[358501753,1745214666622,-1888.77,0.00067945,120]
[358501754,1745214666632,-585.1373511,0.00067945,120]
[358501755,1745214666642,-500.0,0.00067945,120]
[358501756,1745214666652,-500.0,0.00067945,12]
[358501757,1745214666662,-612.09,0.00067945,120]
[358501758,1745214666672,-592.31,0.00067945,120]
[358501759,1745214666681,-500.0,0.00067945,120]
[358501760,1745214666691,-1478.95,0.00067945,120]
[358501761,1745214666701,-656.63,0.00067945,120]
[358501762,1745214666710,-500.0,0.00067945,120]
[358501763,1745214666720,-608.34,0.00067945,120]
[358501764,1745214666729,-638.66,0.00067945,120]
[358501765,1745214666739,-926.33,0.00067945,120]
[358501766,1745214666749,-500.0,0.00067945,120]
[358501767,1745214666758,-869.56,0.00067945,120]
[358501768,1745214666767,-500.0,0.00067945,120]
[358501769,1745214666778,-591.62,0.00067945,120]
[358501770,1745214666787,-1833.37,0.00067945,120]
[358501771,1745214666797,-910.06,0.00067945,120]
[358501772,1745214666806,-829.15,0.00067945,120]
[358501773,1745214666816,-768.77,0.00067945,120]
[358501774,1745214666824,-597.8,0.00067945,120]
[358501775,1745214666834,-2883.81,0.00067945,2]
[358501776,1745214666843,-677.43,0.00067945,120]
[358501777,1745214666852,-1616.9,0.00067945,120]
[358501778,1745214666866,-1210.3,0.00067945,120]
[358501779,1745214666876,-321.02365472,0.00067945,120]
[358501780,1745214666886,-549.92,0.00067945,120]
[358501781,1745214666896,-500.0,0.00067945,2]
[358501782,1745214666906,-1260.87,0.00067945,120]
[358501783,1745214666915,-967.34,0.00067945,120]
[358501784,1745214666925,-575.20173136,0.00067945,120]
[358501785,1745214666935,-928.59,0.00067945,120]
[358501786,1745214666945,-684.21,0.00067945,120]
[358501787,1745214666955,-500.0,0.00067945,120]
[358501788,1745214666964,-500.0,0.00067946,120]
[358501789,1745214666974,-1984.0,0.00067946,120]
[358501790,1745214666985,-791.0,0.00067946,120]
[358501791,1745214666994,-150.0,0.00067957,120]
[358501792,1745214667004,-150.0,0.00067963,120]
[358501793,1745214667014,-243.3956206,0.00067995,120]
[358501794,1745214667023,-1000.0,0.00067999,120]
[358501795,1745214667032,-330.0,0.00068,90]
[358501796,1745214667042,-255.3764176,0.00068,120]
[358501797,1745214667051,-200.0,0.00068,120]
[358501798,1745214667060,-202.96210339,0.00068,70]
[358501799,1745214667070,-292.0,0.00068,120]
[358501800,1745214667079,-150.0,0.00068007,120]
[358501801,1745214667089,-910.51788537,0.0006801,60]
[358501802,1745214667098,-150.0,0.00068055,120]
[358501803,1745214667108,-243.3956206,0.0006807,120]
[358501804,1745214667117,-150.0,0.00068099,120]
[358501805,1745214667126,-286.0,0.000681,120]
[358501806,1745214667137,-150.0,0.00068117,120]
[358501807,1745214667146,-243.3956206,0.00068145,120]
[358501808,1745214667155,-150.0,0.00068154,120]
[358501809,1745214667164,-2414.4,0.000682,60]
[358501810,1745214667174,-157.267263,0.000682,120]
[358501811,1745214667182,-154.289613,0.000682,120]
[358501812,1745214667192,-155.277727,0.000682,120]
[358501813,1745214667201,-153.229548,0.000682,120]
[358501814,1745214667210,-155.744423,0.000682,120]
[358501815,1745214667219,-155.277726,0.000682,120]
[358501816,1745214667229,-156.274713,0.000682,120]
[358501817,1745214667238,-175.575359,0.000682,120]
[358501818,1745214667246,-176.087991,0.000682,120]
[358501819,1745214667256,-192.76,0.000682,7]
[358501820,1745214667265,-243.3956206,0.0006822,120]
[358501821,1745214667274,-150.0,0.0006822,120]
[358501822,1745214667283,-150.0,0.00068246,120]
[358501823,1745214667293,-150.0,0.00068252,120]
[358501824,1745214667302,-150.0,0.00068271,120]
[358501825,1745214667311,-243.3956206,0.00068294,120]
[358501826,1745214667320,-1455.0,0.000683,60]
[358501827,1745214667328,-150.0,0.00068316,120]
[358501828,1745214667337,-150.0,0.00068339,120]
[358501829,1745214667346,-150.0,0.00068351,120]
[358501830,1745214667356,-243.3956206,0.00068369,120]
[358501831,1745214667365,-200.0,0.000684,120]
[358501832,1745214667375,-200.0,0.000684,120]
[358501833,1745214667384,-150.0,0.00068425,120]
[358501834,1745214667394,-243.3956206,0.00068444,120]
[358501835,1745214667403,-150.0,0.0006845,120]
[358501836,1745214667412,-150.0,0.00068485,120]
[358501837,1745214667422,-500.0,0.00068493,120]
[358501838,1745214667431,-500.0,0.00068493,120]
[358501839,1745214667440,-403.47128089,0.00068493,120]
[358501840,1745214667450,-1679.61,0.00068493,7]
[358501841,1745214667459,-599.27,0.00068493,120]
[358501842,1745214667468,-500.0,0.00068493,120]
[358501843,1745214667477,-947.83,0.00068493,120]
[358501844,1745214667488,-500.0,0.00068493,120]
[358501845,1745214667497,-648.72,0.00068493,120]
[358501846,1745214667506,-500.0,0.00068493,14]
[358501847,1745214667515,-1007.83,0.00068493,120]
[358501848,1745214667524,-500.0,0.00068493,120]
[358501849,1745214667534,-527.13,0.00068493,120]
[358501850,1745214667543,-1890.04,0.00068493,120]
[358501851,1745214667553,-676.5,0.00068493,120]
[358501852,1745214667562,-841.95,0.00068493,120]
[358501853,1745214667571,-500.0,0.00068493,120]
[358501854,1745214667581,-793.51,0.00068493,120]
[358501855,1745214667591,-152.875141,0.00068493,120]
[358501856,1745214667601,-152.875141,0.00068493,120]
[358501857,1745214667610,-500.0,0.00068493,120]
[358501858,1745214667620,-500.0,0.00068493,120]
[358501859,1745214667629,-1888.77,0.00068493,120]
[358501860,1745214667639,-500.0,0.00068493,120]
[358501861,1745214667649,-151.0,0.00068493,120]
[358501862,1745214667659,-500.0,0.00068493,12]
[358501863,1745214667669,-612.09,0.00068493,120]
[358501864,1745214667678,-592.31,0.00068493,120]
[358501865,1745214667687,-500.0,0.00068493,120]
[358501866,1745214667697,-1478.95,0.00068493,120]
[358501867,1745214667706,-656.63,0.00068493,120]
[358501868,1745214667716,-500.0,0.00068493,120]
[358501869,1745214667725,-608.34,0.00068493,120]
[358501870,1745214667737,-638.66,0.00068493,120]
[358501871,1745214667747,-926.33,0.00068493,120]
[358501872,1745214667757,-500.0,0.00068493,120]
[358501873,1745214667766,-869.56,0.00068493,120]
[358501874,1745214667775,-500.0,0.00068493,120]
[358501875,1745214667785,-591.62,0.00068493,120]
[358501876,1745214667794,-1833.37,0.00068493,120]
[358501877,1745214667804,-910.06,0.00068493,120]
[358501878,1745214667813,-829.15,0.00068493,120]
[358501879,1745214667823,-768.77,0.00068493,120]
[358501880,1745214667832,-597.8,0.00068493,120]
[358501881,1745214667841,-2883.81,0.00068493,2]
[358501882,1745214667850,-677.43,0.00068493,120]
[358501883,1745214667859,-1616.9,0.00068493,120]
[358501884,1745214667870,-1210.3,0.00068493,120]
[358501885,1745214667879,-549.92,0.00068493,120]
[358501886,1745214667888,-500.0,0.00068493,2]
[358501887,1745214667898,-1260.87,0.00068493,120]
[358501888,1745214667907,-967.34,0.00068493,120]
[358501889,1745214667917,-928.59,0.00068493,120]
[358501890,1745214667927,-684.21,0.00068493,120]
[358501891,1745214667938,-500.0,0.00068493,120]
[358501892,1745214667949,-500.0,0.00068493,2]
[358501893,1745214667958,-500.0,0.00068493,120]
[358501894,1745214667967,-1984.0,0.00068493,120]
[358501895,1745214667976,-791.0,0.00068493,120]
[358501896,1745214667986,-211.0,0.0006851,30]
[358501897,1745214668096,-209.0,0.0006851,30]
[358501898,1745214668106,-212.0,0.0006851,30]
[358501899,1745214668114,-243.3956206,0.00068518,120]
[358501900,1745214668124,-150.0,0.00068534,120]
[358501901,1745214668133,-150.0,0.00068548,120]
[358501902,1745214668143,-150.0,0.00068579,120]
[358501903,1745214668152,-150.0,0.00068586,120]
[358501904,1745214668161,-243.3956206,0.00068593,120]
[358501905,1745214668170,-150.0,0.00068631,120]
[358501906,1745214668179,-150.0,0.00068647,120]
[358501907,1745214668189,-243.3956206,0.00068668,120]
[358501908,1745214668198,-150.0,0.00068723,120]
[358501909,1745214668208,-150.0,0.00068733,120]
[358501910,1745214668217,-243.3956206,0.00068743,120]
[358501911,1745214668226,-150.0,0.00068746,120]
[358501912,1745214668236,-150.0,0.00068751,120]
[358501913,1745214668246,-2000.0,0.000688,120]
[358501914,1745214668255,-243.3956206,0.00068817,120]
[358501915,1745214668264,-150.0,0.00068844,120]
[358501916,1745214668273,-150.0,0.00068853,120]
[358501917,1745214668283,-1098.86258776,0.00068881,120]
[358501918,1745214668292,-150.0,0.00068887,120]
[358501919,1745214668302,-243.3956206,0.00068892,120]
[358501920,1745214668311,-500.0,0.000689,120]
[358501921,1745214668320,-150.0,0.00068943,120]
[358501922,1745214668329,-1800.0,0.0006896,42]
[358501923,1745214668338,-150.0,0.00068962,120]
[358501924,1745214668348,-243.3956206,0.00068967,120]
[358501925,1745214668357,-150.0,0.00068969,120]
[358501926,1745214668366,-1455.0,0.00068969,60]
[358501927,1745214668376,-37479.99433286,0.00069,2]
[358501928,1745214668393,-500.60276321,0.00069,2]
[358501929,1745214679574,-1672.27108203,0.00069,2]
[358501930,1745214679586,-2415.08635165,0.00069,2]
[358501931,1745214679598,-1000.0,0.00069,2]
[358501932,1745214679608,-599.99999901,0.00069,120]
[358501933,1745214679619,-2001.92653403,0.00069,30]
[358501934,1745214679629,-1139.79397036,0.00069,120]
[358501935,1745214679639,-155.148744,0.00069,2]
[358501936,1745214679649,-231.462309,0.00069,120]
[358501937,1745214679659,-156.22,0.00069005,30]
[358501938,1745214679669,-500.0,0.00069041,120]
[358501939,1745214679679,-1679.61,0.00069041,7]
[358501940,1745214679688,-599.27,0.00069041,120]
[358501941,1745214679698,-634.71666975,0.00069041,120]
[358501942,1745214679708,-947.83,0.00069041,120]
[358501943,1745214679717,-500.0,0.00069041,120]
[358501944,1745214679727,-648.72,0.00069041,120]
[358501945,1745214679737,-500.0,0.00069041,14]
[358501946,1745214679748,-1007.83,0.00069041,120]
[358501947,1745214679757,-107.73654202,0.00069041,120]
[358501948,1745214679770,-392.26345798,0.00069041,120]
[358501949,1745214679780,-527.13,0.00069041,120]
[358501950,1745214679790,-48.01545116,0.00069041,120]
[358501951,1745214679801,-453.0,0.00069041,120]
[358501952,1745214679991,-208.78,0.0004594,7]
[358501953,1745214680001,-350.68,0.00057138,30]
[358501954,1745214680010,-153.0,0.00062846,60]
[358501955,1745214680020,-2447.07742746,0.00063,120]
[358501956,1745214680031,-265.59999703,0.00063,120]
[358501958,1745215221416,156.817218,0.00022562,2]
[358501959,1745215520000,-216.934197,0.000548,120]
[358501960,1745215653168,-156.817218,0.00036922,2]
[358501961,1745215653189,-33.48298454,0.00038357,2]
[358501970,1745215832117,-151.0,0.00038129,2]
[358501971,1745215832127,-151.0,0.00038555,2]
[358501972,1745215832136,-434.159057,0.00048046,2]
[358501973,1745215832146,-156.817218,0.00048288,60]
[358501974,1745215832155,-300.0,0.00048306,5]
[358501975,1745215832164,-153.33,0.000484,45]
[358501976,1745215832173,-271.2855289,0.00048509,5]
[358501977,1745215832185,-78.7144711,0.00048509,5]
[358501978,1745215832195,-913.61161876,0.0004851,30]
[358501979,1745215832206,-1397.7819348,0.0004851,30]
[358501980,1745215832217,-2441.56500959,0.0004851,30]
[358501981,1745215832231,-350.05233794,0.0004851,30]
[358501982,1745215832242,-5201.8355525,0.0004851,30]
[358501983,1745215832253,-1326.15608991,0.0004851,30]
[358501984,1745215832496,-8767.63813103,0.0004851,30]
[358501985,1745215832508,-9861.2031721,0.0004851,30]
[358501986,1745215832522,-650.74662834,0.0004851,30]
[358501988,1745215832538,-684.22367525,0.0004851,30]
[358502058,1745215838232,-1158.53347983,0.0004851,30]
[358502059,1745215838241,-2054.94318717,0.0004851,120]
[358502060,1745215838253,-1738.29145868,0.0004851,120]
[358502061,1745215838345,-14606.76535415,0.0004851,120]
[358502062,1745215838354,-215.46706819,0.000489,21]
[358502063,1745215838364,-156.817218,0.00051281,2]
[358502064,1745215838376,-301.46825513,0.00054491,2]
[358502065,1745215838385,-156.817218,0.00054501,60]
[358502066,1745215838395,-153.33,0.000547,54]
[358502067,1745215838404,-153.33,0.000547,54]
[358502068,1745215838413,-267.732,0.00054799,103]
[358502069,1745215838423,-110164.23452279,0.000548,120]
[358502070,1745215838433,-1840.12803798,0.000548,120]
[358502071,1745215838442,-151.0,0.00055,120]
[358502072,1745215838452,-614.99,0.00055,120]
[358502073,1745215838461,-627.92629218,0.00056,120]
[358502074,1745215838471,-267.39602884,0.00056265,120]
[358502075,1745215838480,-430.8398464,0.00057,120]
[358502076,1745215838490,-204.0,0.00058,15]
[358502077,1745215838499,-766.85,0.00059122,30]
[358502078,1745215838508,-1005.76,0.00059246,30]
[358502079,1745215838518,-150.0,0.00059293,7]
[358502080,1745215838527,-400.35,0.00059432,2]
[358502081,1745215838538,-219.41,0.0006,120]
[358502082,1745215838549,-299.79,0.000605,2]
[358502083,1745215838559,-156.817218,0.00060714,60]
[358502084,1745215838568,-23900.0,0.00060818,2]
[358502085,1745215838577,-166.66,0.00060853,2]
[358502086,1745215838586,-379.50127944,0.000609,15]
[358502087,1745215838595,-400.0,0.00061,120]
[358502088,1745215838605,-153.33,0.00061,63]
[358502089,1745215838614,-153.33,0.00061,63]
[358502090,1745215838624,-152.86,0.00061091,120]
[358502091,1745215838633,-1000.0,0.00061213,120]
[358502092,1745215838643,-157.26,0.00061438,120]
[358502093,1745215838652,-250.0,0.0006148,120]
[358502094,1745215838661,-161.86,0.00061519,120]
[358502095,1745215838671,-400.35,0.00061696,2]
[358502096,1745215838680,-3492.0,0.00062,30]
[358502097,1745215838690,-453.46,0.00062041,30]
[358502098,1745215838699,-609.62,0.00062041,30]
[358502099,1745215838708,-453.46,0.00062141,30]
[358502100,1745215838718,-1560.16,0.00062141,30]
[358502101,1745215838727,-453.46,0.00062141,30]
[358502102,1745215838738,-453.46,0.00062141,30]
[358502103,1745215838747,-453.46,0.00062141,30]
[358502104,1745215838756,-424.38734791,0.00062376,120]
[358502105,1745215838765,-379.50127936,0.00062456,15]
[358502106,1745215838775,-1000.0,0.000627,90]
[358502107,1745215838784,-5826.623,0.00062913,2]
[358502108,1745215838793,-1000.0,0.00062913,2]
[358502109,1745215838803,-2500.0,0.00062913,2]
[358502110,1745215838812,-14937.3638,0.00063,2]
[358502111,1745215838821,-508.62102214,0.00063013,120]
[358502112,1745215838831,-500.0,0.00063013,120]
[358502114,1745215838840,-500.0,0.00063013,120]
[358502115,1745215838849,-500.0,0.00063013,120]
[358502116,1745215838858,-500.0,0.00063013,120]
[358502117,1745215838867,-500.0,0.00063013,14]
[358502118,1745215838876,-500.0,0.00063013,120]
[358502119,1745215838885,-500.0,0.00063013,120]
[358502120,1745215838894,-1023.08,0.00063013,120]
[358502121,1745215838904,-500.0,0.00063013,120]
[358502122,1745215838914,-500.0,0.00063013,120]
[358502123,1745215838923,-500.0,0.00063013,120]
[358502124,1745215838932,-500.0,0.00063013,120]
[358502125,1745215838941,-801.1,0.00063013,120]
[358502126,1745215838950,-550.07,0.00063013,120]
[358502127,1745215838959,-993.07,0.00063013,120]
[358502128,1745215838968,-875.82,0.00063013,120]
[358502129,1745215838977,-500.0,0.00063013,120]
[358502130,1745215838987,-582.29981595,0.00063013,120]
[358502131,1745215838996,-500.0,0.00063013,120]
[358502132,1745215839005,-500.0,0.00063013,120]
[358502133,1745215839014,-500.0,0.00063013,120]
[358502134,1745215839023,-500.0,0.00063013,120]
[358502135,1745215839032,-500.0,0.00063013,120]
[358502136,1745215839041,-512.25578654,0.00063013,120]
[358502137,1745215839050,-1562.07,0.00063013,2]
[358502138,1745215839058,-500.0,0.00063013,120]
[358502139,1745215839067,-500.0,0.00063013,120]
[358502140,1745215839076,-500.0,0.00063013,120]
[358502141,1745215839086,-267.33566992,0.00063013,120]
[358502142,1745215839102,-232.66433008,0.00063013,120]
[358502143,1745215839111,-245.12333837,0.00063013,120]
[358502144,1745215839122,-254.87666163,0.00063013,120]
[358502145,1745215839131,-126.08702504,0.00063013,120]
[358502146,1745215839142,-333.4674416,0.00063013,120]
[358502150,1745215840445,-40.44553336,0.00063013,120]
[358502151,1745215840455,-594.35943558,0.00063013,120]
[358502152,1745215840464,-500.0,0.00063013,120]
[358502153,1745215840474,-500.0,0.00063013,120]
[358502154,1745215840483,-500.0,0.00063013,120]
[358502155,1745215840493,-735.51,0.00063013,120]
[358502156,1745215840502,-500.0,0.00063013,120]
[358502157,1745215840512,-500.0,0.00063013,120]
[358502158,1745215840521,-500.0,0.00063013,120]
[358502159,1745215840530,-500.0,0.00063013,120]
[358502160,1745215840539,-500.0,0.00063013,118]
[358502161,1745215840548,-500.0,0.00063013,120]
[358502162,1745215840557,-500.0,0.00063013,120]
[358502163,1745215840566,-500.0,0.00063013,120]
[358502164,1745215840575,-500.0,0.00063013,120]
[358502165,1745215840584,-528.07591535,0.00063013,120]
[358502166,1745215840594,-500.16278886,0.00063013,2]
[358502167,1745215840603,-500.0,0.00063013,120]
[358502168,1745215840613,-371.2802119,0.00063013,120]
[358502169,1745215840622,-500.0,0.00063013,120]
[358502170,1745215840631,-500.0,0.00063013,120]
[358502171,1745215840640,-600.26624842,0.00063013,120]
[358502172,1745215840649,-500.0,0.00063013,120]
[358502173,1745215840658,-500.0,0.00063013,120]
[358502174,1745215840668,-500.0,0.00063013,120]
[358502175,1745215840677,-500.0,0.00063013,120]
[358502176,1745215840687,-500.0,0.00063014,120]
[358502177,1745215840696,-500.0,0.00063014,120]
[358502178,1745215840706,-500.0,0.00063014,120]
[358502179,1745215840715,-500.0,0.00063014,120]
[358502180,1745215840725,-500.0,0.00063014,120]
[358502181,1745215840734,-500.0,0.00063014,120]
[358502182,1745215840744,-500.0,0.00063014,120]
[358502183,1745215840753,-500.0,0.00063014,120]
[358502184,1745215840762,-500.0,0.00063014,120]
[358502185,1745215840771,-500.0,0.00063014,120]
[358502186,1745215840781,-500.0,0.00063014,120]
[358502187,1745215840790,-500.0,0.00063014,120]
[358502189,1745215840799,-500.0,0.00063014,120]
[358502191,1745215840809,-500.0,0.00063014,120]
[358502192,1745215840818,-500.0,0.00063014,120]
[358502193,1745215840827,-500.0,0.00063014,120]
[358502194,1745215840836,-500.0,0.00063014,120]
[358502195,1745215840845,-500.0,0.00063014,120]
[358502196,1745215840854,-500.0,0.00063014,120]
[358502197,1745215840863,-500.0,0.00063014,120]
[358502198,1745215840873,-500.0,0.00063014,120]
[358502199,1745215840882,-500.0,0.00063014,120]
[358502200,1745215840891,-500.0,0.00063014,120]
[358502201,1745215840900,-614.89203641,0.00063014,120]
[358502202,1745215840910,-500.0,0.00063014,120]
[358502203,1745215840919,-500.0,0.00063014,120]
[358502204,1745215840928,-500.0,0.00063014,120]
[358502205,1745215840937,-500.0,0.00063014,120]
[358502206,1745215840947,-500.0,0.00063014,120]
[358502207,1745215840956,-500.0,0.00063014,120]
[358502208,1745215840965,-500.0,0.00063014,120]
[358502209,1745215840974,-500.0,0.00063014,120]
[358502210,1745215840983,-500.0,0.00063014,120]
[358502211,1745215840993,-500.0,0.00063014,120]
[358502212,1745215841002,-500.0,0.00063014,120]
[358502213,1745215841011,-500.0,0.00063014,120]
[358502214,1745215841020,-500.0,0.00063014,120]
[358502215,1745215841029,-500.0,0.00063014,120]
[358502216,1745215841038,-500.0,0.00063014,120]
[358502217,1745215841047,-500.0,0.00063014,120]
[358502218,1745215841056,-500.0,0.00063014,120]
[358502219,1745215841065,-500.0,0.00063014,120]
[358502220,1745215841074,-500.0,0.00063014,120]
[358502221,1745215841083,-500.0,0.00063014,120]
[358502222,1745215841092,-500.0,0.00063014,120]
[358502223,1745215841101,-500.0,0.00063014,120]
[358502224,1745215841110,-500.0,0.00063014,120]
[358502225,1745215841119,-500.0,0.00063014,120]
[358502226,1745215841128,-550.0,0.00063014,120]
[358502227,1745215841138,-500.0,0.00063014,120]
[358502228,1745215841148,-500.0,0.00063014,120]
[358502229,1745215841160,-500.0,0.00063014,120]
[358502230,1745215841170,-500.0,0.00063014,120]
[358502231,1745215841180,-500.0,0.00063014,120]
[358502232,1745215841189,-500.0,0.00063014,120]
[358502233,1745215841198,-500.0,0.00063014,120]
[358502234,1745215841208,-500.0,0.00063014,120]
[358502235,1745215841217,-500.0,0.00063014,120]
[358502236,1745215841228,-500.0,0.00063014,120]
[358502237,1745215841238,-500.0,0.00063014,120]
[358502238,1745215841247,-500.0,0.00063014,120]
[358502239,1745215841256,-250.0,0.00063014,120]
[358502240,1745215841265,-1000.0,0.00063361,30]
[358502241,1745215841274,-166.66,0.00063364,2]
[358502242,1745215841283,-4091.25843608,0.00063523,15]
[358502243,1745215841292,-500.0,0.00063525,2]
[358502244,1745215841302,-743.10335302,0.00063525,35]
[358502245,1745215841311,-500.0,0.00063561,120]
[358502246,1745215841321,-500.0,0.00063561,120]
[358502247,1745215841331,-540.38005381,0.00063561,120]
[358502248,1745215841340,-500.0,0.00063561,14]
[358502249,1745215841350,-500.0,0.00063561,120]
[358502250,1745215841359,-500.0,0.00063561,120]
[358502251,1745215841369,-1023.08,0.00063561,120]
[358502252,1745215841381,-500.0,0.00063561,120]
[358502253,1745215841390,-500.0,0.00063561,120]
[358502254,1745215841400,-801.1,0.00063561,120]
[358502255,1745215841409,-550.07,0.00063561,120]
[358502256,1745215841419,-993.07,0.00063561,120]
[358502257,1745215841428,-875.82,0.00063561,120]
[358502258,1745215841437,-1562.07,0.00063561,2]
[358502259,1745215841447,-735.51,0.00063561,120]
[358502260,1745215841456,-500.0,0.00063561,120]
[358502261,1745215841466,-500.0,0.00063561,120]
[358502262,1745215841475,-380.64245281,0.00063561,120]
[358502263,1745215841488,-22021.8799904,0.00063614,4]
[358502264,1745215841497,-35864.54093096,0.00063615,4]
[358502265,1745215841519,-5726.2882867,0.00063615,4]
[358502266,1745215841530,-2452.93076314,0.00063615,4]
[358502267,1745215841540,-500.0,0.00063623,120]
[358502268,1745215841549,-130.58474039,0.00063623,120]
[358502269,1745215841560,-369.41525961,0.00063623,120]
[358502270,1745215841569,-52.90774037,0.00063623,120]
[358502271,1745215841581,-447.09225963,0.00063623,120]
[358502272,1745215841590,-500.0,0.00063623,120]
[358502273,1745215841599,-500.0,0.00063623,120]